{"text_format":"1","workbook":"xlsx","n_sheets":2,"sheets":["أسعار"," رئيسي"],"not_rendered":{"charts":0,"images":0,"macros":1,"external_links":0,"defined_names":4,"comments":0,"pivot_tables":0},"unopened":[],"bounds":{"document_bytes":16777216,"sheet_cells":100000,"rows_first":2000,"rows_last":500,"rows_between":2000,"halvings":0,"cell_chars":16384,"cell_head_chars":4096},"cells_cut":0,"cells_raw":0,"read":"whole","date_system":"1900"}

{"sheet":"أسعار","index":0,"n_rows":43,"n_cols":3,"rows_kept":43,"cut":false,"hidden":false,"merged":[[0,0,4,0]]}
[]
[]
[]
[]
[]
[]
[null,"رقم الموديل","السعر"]
[null,1394,2.0499999999999998]
[null,1646,2.5]
[null,1646,2.5]
[null,1395,2.5]
[null,1661,0.6]
[null,1661,0.6]
[null,1661,0.6]
[null,1661,0.6]
[null,1395,2.5]
[null,1395,2.5]
[null,1661,0.6]
[null,1660,0.7]
[null,1661,0.6]
[null,1660,0.7]
[null,1394,2.0499999999999998]
[null,1395,2.5]
[null,1395,2.5]
[null,1394,2.0499999999999998]
[null,1394,2.0499999999999998]
[null,1395,2.5]
[null,1689,0.65]
[null,1677,0.8]
[null,1678,0.75]
[null,1682,0.75]
[null,1596,0.65]
[null,1431,0.65]
[null,1615,0.55000000000000004]
[null,1676,0.75]
[null,1707,0.85]
[null,1708,1.7]
[null,649,0.35]
[null,1443,0.55000000000000004]
[null,1721,0.8]
[null,1614,0.7]
[null,1659,0.6]
[null,647,1.05]

{"sheet":" رئيسي","index":1,"n_rows":405,"n_cols":21,"rows_kept":405,"cut":false,"hidden":false,"merged":[[6,10,8,10],[6,11,8,11],[0,8,5,9],[6,1,8,1],[6,2,8,2],[6,3,8,3],[6,4,8,4],[6,5,8,5],[6,6,8,6],[6,7,8,7],[6,8,8,8],[6,9,8,9]]}
[]
[]
[]
[]
[]
[]
[null,"باركود"," إجمالي قيمة البضاعة المستلمة","العدد  ","السعر الإفرادي ","اللون","النعل","الموديل"," الصنف والبيان","تاريخ التسليم     ","تاريخ الاستلام  ","رقم الحاوية"]
[]
[]
[null,2204782,{"$f":"D10*E10","v":1525},610,2.5,"اسود","فراشة",1395,"ولادي","2022-02-23","2022-02-26","R41"]
[null,2203235,{"$f":"D11*E11","v":1004.4999999999999},490,2.0499999999999998,"اسود","فراشة",1394,"شبابي","2022-02-23","2022-02-26","R1"]
[null,2203235,null,null,{"$f":"VLOOKUP(H10,أسعار!B:C,2,)","v":2.5},null,null,null,null,null,"2022-03-26"]
[]
[]
[]
[]
[]
[]
[]
[null,null,null,null,null,null,null,null,null,null,null,null,null,null,null,null,null,null,null,null," "]
[]
[]
[]
[]
[]
[]
[]
[]
[]
[]
[]
[]
[]
[]
[]
[]
[]
[]
[]
[]
[]
[]
[]
[]
[]
[]
[]
[]
[]
[]
[]
[]
[]
[]
[]
[]
[]
[]
[]
[]
[]
[]
[]
[]
[]
[]
[]
[]
[]
[]
[null,null,null,null,null,null,null,null,null,null,null,null,null,null,null,null,null,null,"سعر"]
[null,null,null,null,null,null,null,null,null,null,null,null,null,null,null,null,null,null,0.55000000000000004,1450]
[null,null,null,null,null,null,null,null,null,null,null,null,null,null,null,null,null,null,0.55000000000000004,1490]
[null,null,null,null,null,null,null,null,null,null,null,null,null,null,null,null,null,null,0.4,1184]
[]
[]
[]
[]
[]
[]
[]
[]
[]
[]
[]
[]
[]
[]
[]
[]
[]
[]
[]
[]
[]
[]
[]
[]
[]
[]
[]
[]
[]
[]
[]
[]
[]
[]
[]
[]
[]
[]
[]
[]
[]
[]
[]
[]
[]
[]
[]
[]
[]
[]
[]
[]
[]
[]
[]
[]
[]
[]
[]
[]
[]
[]
[]
[]
[]
[]
[]
[]
[]
[]
[]
[]
[]
[]
[]
[]
[]
[]
[]
[]
[]
[]
[]
[]
[]
[]
[]
[]
[]
[]
[]
[]
[]
[]
[]
[]
[]
[]
[]
[]
[]
[]
[]
[]
[]
[]
[]
[]
[]
[]
[]
[]
[]
[]
[]
[]
[]
[]
[]
[]
[]
[]
[]
[]
[]
[]
[]
[]
[]
[]
[]
[]
[]
[]
[]
[]
[]
[]
[]
[]
[]
[]
[]
[]
[]
[]
[]
[]
[]
[]
[]
[]
[]
[]
[]
[]
[]
[]
[]
[]
[]
[]
[]
[]
[]
[]
[]
[]
[]
[]
[]
[]
[]
[]
[]
[]
[]
[]
[]
[]
[]
[]
[]
[]
[]
[]
[]
[]
[]
[]
[]
[]
[]
[]
[]
[]
[]
[]
[]
[]
[]
[]
[]
[]
[]
[]
[]
[]
[]
[]
[]
[]
[]
[]
[]
[]
[]
[]
[]
[]
[]
[]
[]
[]
[]
[]
[]
[]
[]
[]
[]
[]
[]
[]
[]
[]
[]
[]
[]
[]
[]
[]
[]
[]
[]
[]
[]
[]
[]
[]
[]
[]
[]
[]
[]
[]
[]
[]
[]
[]
[]
[]
[]
[]
[]
[]
[]
[]
[]
[]
[]
[]
[]
[]
[]
[]
[]
[]
[]
[]
[]
[]
[]
[]
[]
[]
[]
[]
[]
[]
[]
[]
[]
[]
[]
[]
[]
[]
[]
[null,null,null,null,null,null,null,null,null,null,null,null,{"$f":"H374","v":0}]
[null,null,null,null,null,null,null,null,null,null,null,null,{"$f":"H375","v":0}]
[null,null,null,null,null,null,null,null,null,null,null,null,0]
[null,null,null,null,null,null,null,null,null,null,null,null,0]
[null,null,null,null,null,null,null,null,null,null,null,null,0]
[null,null,null,null,null,null,null,null,null,null,null,null,0]
[null,null,null,null,null,null,null,null,null,null,null,null,0]
[null,null,null,null,null,null,null,null,null,null,null,null,0]
[null,null,null,null,null,null,null,null,null,null,null,null,0]
[null,null,null,null,null,null,null,null,null,null,null,null,0]
[null,null,null,null,null,null,null,null,null,null,null,null,0]
[null,null,null,null,null,null,null,null,null,null,null,null,0]
[null,null,null,null,null,null,null,null,null,null,null,null,0]
[null,null,null,null,null,null,null,null,null,null,null,null,0]
[null,null,null,null,null,null,null,null,null,null,null,null,0]
[null,null,null,null,null,null,null,null,null,null,null,null,0]
[null,null,null,null,null,null,null,null,null,null,null,null,0]
[null,null,null,null,null,null,null,null,null,null,null,null,0]
[null,null,null,null,null,null,null,null,null,null,null,null,0]
[null,null,null,null,null,null,null,null,null,null,null,null,0]
[null,null,null,null,null,null,null,null,null,null,null,null,0]
[null,null,null,null,null,null,null,null,null,null,null,null,0]
[null,null,null,null,null,null,null,null,null,null,null,null,0]
[null,null,null,null,null,null,null,null,null,null,null,null,0]
[null,null,null,null,null,null,null,null,null,null,null,null,0]
[null,null,null,null,null,null,null,null,null,null,null,null,0]
[null,null,null,null,null,null,null,null,null,null,null,null,0]
[null,null,null,null,null,null,null,null,null,null,null,null,0]
[null,null,null,null,null,null,null,null,null,null,null,null,0]
[null,null,null,null,null,null,null,null,null,null,null,null,0]
[null,null,null,null,null,null,null,null,null,null,null,null,0]
[null,null,null,null,null,null,null,null,null,null,null,null,0]